{"text_format":"1","workbook":"xlsx","n_sheets":4,"sheets":["SUIVI","ÉQUIPEMENTS","DATA","Feuil1"],"not_rendered":{"charts":0,"images":0,"macros":1,"external_links":1,"defined_names":7,"comments":1,"pivot_tables":0},"unopened":[],"bounds":{"document_bytes":16777216,"sheet_cells":100000,"rows_first":2000,"rows_last":500,"rows_between":2000,"halvings":0,"cell_chars":16384,"cell_head_chars":4096},"cells_cut":0,"cells_raw":0,"read":"whole","date_system":"1900"}

{"sheet":"SUIVI","index":0,"n_rows":83,"n_cols":54,"rows_kept":83,"cut":false,"hidden":false,"merged":[[47,0,48,0],[56,8,57,14],[57,17,57,19],[59,2,60,11],[59,13,60,22],[2,0,3,0],[43,0,46,0],[4,0,9,0],[11,0,13,0],[14,0,19,0],[20,0,24,0],[25,0,30,0],[31,0,32,0],[33,0,34,0],[35,0,36,0],[37,0,38,0],[39,0,40,0],[41,0,42,0],[2,23,2,24],[0,1,0,4],[0,5,0,12],[0,13,0,17],[0,18,0,22]]}
[null,"2019-04-30",null,null,null,"",null,null,null,null,null,null,null,"",null,null,null,null,"",null,null,null,null,null,null,null,null,null,null,null,null,null,null,null,null,null,null,null,null,null,null,null,null,null,null,null,null,null,null,null,null,null,null,1]
["JOBS","captiva","delta","actyon","adam","bravo","berlingo","brava","altea","caddy","carrera","cayenne",null,null,"altea","amarok","cerebra","ceed","civic","cruze","cygnet","aygo",null," "]
["MACHINERIE",{"$f":"IFERROR(VLOOKUP(B2,JOBS,2,0),\"\")","v":"18-5632"},"19-5669","19-5671","19-5676","18-5583","19-5670","18-1111","18-5617","18-5554","18-5685","18-5634",{"$f":"IFERROR(VLOOKUP(M2,JOBS,2,0),\"\")","v":""},"","18-5617","18-5542","18-5625","18-5547","18-5680","18-5642","18-5582","18-5550","","TRI"]
[null,{"$f":"IFERROR(VLOOKUP(B2,JOBS,3,0),\"\")","v":"Bevis Tessier"},"Chappell Chartré","Bevis Tessier","Charles Viens","Chappell Chartré","Bevis Tessier","Bevis Tessier","Bevis Tessier","Charles Viens","Chappell Chartré","Bevis Tessier",{"$f":"IFERROR(VLOOKUP(M2,JOBS,3,0),\"\")","v":""},"","Bevis Tessier","Bevis Tessier","Denis Jacques","Bevis Tessier","Bevis Tessier","Denis Jacques","Bevis Tessier","Denis Jacques",""]
["BOBCATS ",1460,null,null,360,"620",null,"925","1320","450","690","545",null,null,"420",1455,null,null,"1010","855","920",null,null,1]
[null,null,null,null,null,"950",null,"1020",null,null,"1165",null,null,null,null,null,null,null,null,null,"1275",null,null,1]
[null,null,null,null,null,"1095",null,null,null,null,"1325",null,null,null,null,null,null,null,null,null,null,null,null,1,null," "]
[null,null,null,null,null,"1205",null,null,null,null,null,null,null,null,null,null,null,null,null,null,null,null,null,1]
[null,null,null,null,null,"1280",null,null,null,null,null,null,null,null,null,null,null,null,null,null,null,null,null,1]
[null,null,null,null,null,null,null,null,null,null,null,null,null,null,null,null,null,null,null,null,null,null,null,1,null," "]
["LOADER",null,null,null,null,null,null,null,null,null,null,null,null,null,null,null,null,null,null,null,null,null,null,1,null,null," "]
["BROUETTES",null,null,null,null,null,null,null,null,null,null,null,null,null,null,null,null,null,null,null,null,null,null,1]
[null,null,null,null,null,null,null,null,null,null,null,null,null,null,null,null,null,null,null,null,null,null,null,1,null,null," "]
[null,null,null,null,null,null,null,null,null,null,null,null,null,null,null,null,null,null,null,null,null,null,null,1," "]
["PELLES",null,null,null,null,"1110",null,null,null,"755",null,null,null,null,null,1480,null,null,null,"615","900",null,null,1]
[null,null,null,null,null,"1300",null,null,null,null,null,null,null,null,null,null,null,null,null,null,null,null,null,1]
[null,null,null,null,null,1450,null,null,null,null,null,null,null,null,null,null,null,null,null,null,null,null,null,1]
[null,null,null,null,null,null,null,null,null,null,null,null,null,null,null,null,null,null,null,null,null,null,null,1]
[null,null,null,null,null,null,null,null,null,null,null,null,null,null,null,null,null,null,null,null,null,null,null,1," ",null," "]
[null,null,null,null,null,null,null,null,null,null,null,null,null,null,null,null,null,null,null,null,null,null,null,1]
["TRAMAC BOBCAT",null,null,null,null,"1235",null,null,null,null,"555",null,null,null,null,null,null,null,null,null,"1065",null,null,1]
[null,null,null,null,null,null,null,null,null,null,"1240",null,null,null,null,null,null,null,null,null,"1445",null,null,1]
[null,null,null,null,null,"1245",null,null,null,null,null,null,null,null,null,null,null,null,null,null,null,null,null,1]
[null,null,null,null,null,null,null,null,null,null,null,null,null,null,null,null,null,null,null,null,null,null,null,1]
[null,null,null,null,null,null,null,null,null,null,null,null,null,null,null,null,null,null,null,null,null,null,null,1]
["TRAMAC PELLE",null,null,null,null,null,null,null,null,"1250",null,null,null,null,null,null,null,null,null,"930","780",null,null,1]
[null,null,null,null,null,null,null,null,null,null,"1115",null,null,null,null,null,null,null,null,null,null,null,null,1]
[null,null,null,null,null,null,null,null,null,null,null,null,null,null,null,null,null,null,null,null,null,null,null,1]
[null,null,null,null,null,"1060",null,null,null,null,null,null,null,null,null,null,null,null,null,null,null,null,null,1,null," "]
[null,null,null,null,null,null,null,null,null,null,null,null,null,null,null,null,null,null,null,null,null,null,null,1]
[null,null,null,null,null,"1400",null,null,null,null,null,null,null,null,null,null,null,null,null,null,null,null,null,1]
["MACHOIRES SCARIFICATEUR",null,null,null,null,"1295",null,null,null,null,null,null,null,null,null,null,null,null,null,null,null,null,null,1]
[null,null,null,null,null,null,null,null,null,null,null,null,null,null,null,null,null,null,null,null,null,null,null,1]
["BALAIS MÉCANIQUE",null,null,null,null,null,null,395,null,null,"791",null,null,null,null,"1025",null,null,null,null,null,null,null,1]
[null,null,null,null,null,"970",null,null,1410,null,null,null,null,null,null,null,null,null,null,null,null,null,null,1]
["LIFT ",null,null,null,null,null,null,null,null,null,null,null,null,null,null,null,null,null,null,null,null,null,null,1]
[null,null,null,null,null,null,null,null,null,null,null,null,null,null,null,null,null,null,null,null,null,null,null,1]
["MERLO",null,null,null,null,null,null,null,null,null,null,null,null,null,null,null,null,"1350","980",null,null,null,null,1]
[null,null,null,null,null,null,null,null,null,null,null,null,null,null,null,null,null,1435,null,null,null,null,null,1]
["NACELLES",null,null,null,null,null,null,null,null,null,null,null,null,null,null,null,null,null,null,null,null,null,null,1]
[null,null,null,null,null,null,null,null,null,null,null,null,null,null,null,null,null,null,null,null,null,null,null,1]
["COMPRESSEURS ",null,null,null,null,"560",null,"825","1075",null,null,null,null,null,null,null,null,null,null,null,null,null,null,1]
[null,null,null,null,null,null,null,null,null,null,null,null,null,null,null,null,null,null,null,null,null,null,null,1]
["HYDRO DEMOLITION",null,null,null,null,"330",null,null,"220",null,null,null,null,null,null,null,null,null,null,null,null,null,null,1]
[null,null,null,null,null,999,null,null,"515",null,null,null,null,null,null,null,null,null,null,null,null,null,null,1]
[null,null,null,null,null,"1080",null,null,null,null,null,null,null,null,null,null,null,null,null,null,null,null,null,1]
[null,null,null,null,null,null,null,null,null,null,null,null,null,null,null,null,null,null,null,null,null,null,null,1]
["ACCESSOIRES",null,null,null,null,"1055",null,null,null,null,null,null,null,null,null,null,null,null,null,null,"ASSIETTE",null,null,1]
[null,null,null,null,null,null,null,null,null,null,null,null,null,null,null,null,null,null,null,null,null,null,null,1]
["GODET À GRAPPIN",null,null,null,null,null,null,null,null,null,null,null,null,null,null,null,null,null,null,null,null,null,null,1]
["CAMIONS +REMORQUES",{"$f":"IFERROR(VLOOKUP(B4,pickup,2,0),\"\")","v":0},915,0,935,915,0,0,0,935,915,0,{"$f":"IFERROR(VLOOKUP(M4,pickup,2,0),\"\")","v":""},"",0,0,975,0,0,975,0,975,"",1]
["CAMIONS  SUPPLÉMENTAIRES",null,null,null,null,"1180-1190",1210,1375,1225,null,null,null,null,null,null,null,null,1185,1260,null,null,null,null,1]
["RÉSERVOIR DIESEL",null,null,null,null,null,null,null,null,null,null,null,null,null,null,null,null,1,null,2,null,null,null,1]
["MACHINE A PRESSION",null,null,null,null,null,null,null,null,null,null,null,null,null,null,null,null,null,null,null,null,null,null,1]
["BENNE A DÉCHETS",null,null,null,null,null,null,null,null,null,null,null,null,null,2,1,null,1,null,1,2,null,null,1]
["CONTENEURS ",null,null,null,null,null,null,null,null,null,null,null,null,null,null,null,null,2,null,2,null,null,null,1]
[1,1,1,1,1,1,1,1,"DISPONIBLES",null,null,null,null,null,null,1,1,1,1,1,1,1,1,1]
[1,1,1,1,1,1,1,1,null,null,null,null,null,null,null,1,1,"EN RÉPARATION",null,null,1,1,1,1]
[1,1,1,1,1,1,1,1,1,1,1,1,1,1,1,1,1,1,1,1,1,1,1,1]
[null,null,"MONTRÉAL",null,null,null,null,null,null,null,null,null,1,"QUÉBEC",null,null,null,null,null,null,null,null,null,1]
[null,null,null,null,null,null,null,null,null,null,null,null,1,null,null,null,null,null,null,null,null,null,null,1]
[null,null,null,null,null,null,null,null,null,null,null,null,1,null,null,null,null,null,null,null,null,null,null,1]
["BOBCATS",1,null,null,null,null,null,null,null,null,null,null,null,"1015","945",null,"1040",null,"695",null,null,null,null,1,null,null,null," "]
["LOADER",1,"745",null,null,null,null,null,null,null,null,null,null,835,null,null,null,null,null,null,null,null,null,1]
["BROUETTES",1,"1105","1360",null,null,null,null,null,null,null,null,null,"475","1030","1035","460",null,null,null,null,null,null,1]
["PELLES",1,null,null,null,null,null,null,null,null,null,null,null,"580",null,"1390",null,"750","865","495",null,null,null,1]
["TRAMAC BOBCAT",1,"540",null,null,null,null,null,null,null,null,null,null,null,"735","740","730",null,null,null,null,null,null,1,null,null," "]
["TRAMAC PELLE",1,null,null,null,null,null,null,null,null,null,null,null,null,null,"1170","1175",null,null,null,null,null,null,1,1305,1310]
["TRAMACS SEULS",1,null,null,null,null,null,null,null,null,null,null,null,"480","610","1415",null,null,null,null,null,null,null,1]
["MACHOIRES SCARIFICATEURS",1,"760",null,null,null,null,null,null,null,null,null,null,"860",1440,null,null,null,null,null,null,null,null,1]
["GODET À GRAPPIN",1,5555,null,null,null,null,null,null,null,null,null,null,1405,1420,1425,6666,null,null,null,null,null,null,1,null,null," "]
["BALAIS MÉCANIQUE",1,null,null,null,null,null,null,null,null,null,null,null,"790","1145","1265",null,null,null,null,null,null,null,1," "]
["LIFT ",1,"135","275",7777,null,null,null,null,null,null,null,null,"340",null,null,null,null,null,null,null,"490","1155",1]
["MERLO",1,null,null,null,null,null,null,null,null,null,null,null,null,null,null,null,null,null,null,null,null,null,1]
["NACELLES",1,"895",null,null,null,null,null,null,null,null,null,null,"985","890",null,null,null,null,null,null,null,null,1]
["COMPRESSEURS ",1,"600",null,null,null,null,null,null,null,null,null,null,"960","830","685",null,"1050",null,null,null,null,null,1]
["ACCESSOIRES",1,660,"1100","1135",1120,null,null,null,null,8888,null,null,655,665,870,875,null,null,null,null,null,null,1,null,null," "]
["HYDRO DEMOLITION",1,null,null,null,null,null,null,null,null,null,null,null,"1380","880",998,null,null,null,null,null,null,null,1]
["CAMIONS",1,680,"885","1005","1085","1150","1285","1315",null,null,null,null,"410","915","975","1000","1355",null,null,null,null,"1395",1]
["RÉSERVOIR DIESEL",1,null,null,null,null,null,null,null,null,null,null,null,null,null,null,null,null,null,null,null,null,null,1]
["BENNE A DÉCHETS",1,null,null,null,null,null,null,null,null,null,null,null,null,null,null,null,null,null,null,null,null,null,1]
["CONTENEURS ",1,null,null,null,null,null,null,null,null,null,null,null,null,null,null,null,null,null,null,null,null,null,1," "]
[null,null,null,null,null,null,null,null,null,null,null,null,null,null,null,null,null,null,null,null,null,null,null,null,null," "]

{"sheet":"ÉQUIPEMENTS","index":1,"n_rows":247,"n_cols":9,"rows_kept":247,"cut":false,"hidden":false,"merged":[]}
["ÉQUIPEMENTS"]
["BOBCATS"]
["BOBCAT 763 G  360",360,null,null,null," "]
["BOBCAT 763G  420",420]
["BOBCAT S150  450",450]
["BOBCAT S185  545",545]
["BOBCAT S150  620",620]
["BOBCAT S150  690",690]
["BOBCAT S150  695",695,null,null,null,null,"En Réparation"]
["BOBCAT CATERPILLAR 226B  855",855]
["BOBCAT S160  920",920,null,null,null,null,"En Réparation"]
["BOBCAT S160  925",925]
["BOBCAT S160  945",945]
["BOBCAT S160  950",950]
["BOBCAT S160  1010",1010]
["BOBCAT S160  1015",1015,null,null,null,null,"En Réparation"]
["BOBCAT S160  1020",1020]
["BOBCAT 553  1040",1040]
["BOBCAT S550  1095",1095]
["BOBCAT CASE SR175  1165",1165]
["BOBCAT CASE SR175  1205",1205]
["BOBCAT CASE SR175  1275",1275]
["BOBCAT CASE SR175  1280",1280]
["BOBCAT CASE SV185  1320",1320]
["BOBCAT CASE SV185  1325",1325]
["BOBCAT CASE SV185  1455",1455]
["BOBCAT CASE SV185  1460",1460]
[]
[]
[]
["LOADER"]
["LOADER CATERPILLAR 908 H  745","745"]
["LOADER CATERPILLAR 908 H  835","835"]
[]
["BROUETTES"]
["BROUETTE À BÉTON  460","460"]
["BROUETTE BÉTON WHITEMAN  475","475"]
["BROUETTE YANMAR C30  1030","1030"]
["BROUETTE YANMAR C30  1035","1035",null,null,null,null,"En Réparation"]
["BROUETTE MULTIQUIP WBH-16  1105","1105",null,null,null,null,"En Réparation"]
["BROUETTE MULTIQUIP WBH-16 EF  1360","1360"]
[]
[]
["PELLES"]
["PELLE BOBCAT 322  495","495",null,null,null,null,"En Réparation"]
["PELLE KUBOTA KX-41-3  580","580",null,null,null,null,"En Réparation"]
["PELLE CATERPILLAR 304CCR  615","615"]
["PELLE KOMATSU PC27MR3  750","750"]
["PELLE KUBOTA KX413  755","755"]
["PELLE KOMATSU PC 35  865","865",null,null,null,null,"En Réparation"]
["PELLE CATERPILLAR 304 CCR  900","900"]
["PELLE KUBOTA KX018  1110","1110"]
["PELLE KUBOTA KX71-3HGLS  1300","1300"]
["PELLE CASE CX145C 1390","1390"]
["PELLE JOHN DEERE 35G  1450",1450]
["PELLE KUBOTA U17  1475",1475]
["PELLE KUBOTA U25 1480",1480]
[]
[]
[]
["COMPRESSEURS"]
["COMPRESSEUR  375 CFM  530","530"]
["COMPRESSEUR  100HP  560","560"]
["COMPRESSEUR  LS-60 600","600"]
["COMPRESSEUR  185 CFM  685","685"]
["COMPRESSEUR 375 CFM 825","825"]
["COMPRESSEUR 375 CFM 830","830"]
["COMPRESSEUR 375 CFM 960","960"]
["COMPRESSEUR 185 CFM  1050","1050"]
["COMPRESSEUR 375 CFM  1075","1075"]
[]
[]
[]
["LIFTS"]
["LIFT TOYOTA FG25  135","135"]
["LIFT TOYOTA  275","275","MR"]
["CHARIOT LIFT HYSTER H50XM  340","340"]
["CHARIOT HYSTER H110XL  490","490"]
["LIFT TOYOTA 8FGU25  1155","1155"]
["TOYOTA BUREAU MONTRÉAL  7777",7777,null,null,null,null,"Pas De Numéro"]
[]
[]
[]
["NACELLES"]
["NACELLE GÉNIE S45  890","890"]
["NACELLE SNORKEL TBA 60  895","895"]
["NACELLE GÉNIE S60  985","985"]
[]
[]
[]
["MERLO"]
["MERLO  980","980"]
["CHARIOT DIECI ICARUS 40.17  1350","1350"]
["MERLO  1435",1435]
[]
[]
[]
["TRAMACS + PAMS",null,null,null,null,"ATTACHES"]
["MARTEAU KUBOTA KXB400  480","480",null,null,null,"AUCUNE ATTACHE"]
["MARTEAU KUBOTA KXB400  540","540",null,null,null,"ATTACHE BOBCAT"]
["MARTEAU KUBOTA KXB400  555","555",null,null,null,"ATTACHE BOBCAT"]
["MARTEAU KUBOTA KXB400  610","610",null,null,null,"AUCUNE ATTACHE"]
["MARTEAU KUBOTA KXB400  730","730",null,null,null,"POUR PELLE BOBCAT","En Réparation"]
["MARTEAU KUBOTA KXB400  735","735",null,null,null,"ATTACHE BOBCAT"]
["MARTEAU KUBOTA KXB400  740","740",null,null,null,"ATTACHE BOBCAT","En Réparation"]
["MARTEAU CATERPILLAR H55DS  780","780",null,null,null,"ATTACHE CATERPILLAR"]
["MARTEAU CATERPILLAR H55DS  930","930",null,null,null,"ATTACHE CATERPILLAR"]
["MARTEAU ATLAS COPCO SB102  1060","1060",null,null,null,"ATTACHE KOMATSU"]
["MARTEAU ATLAS COPCO SB102  1065","1065",null,null,null,"ATTACHE BOBCAT"]
["MARTEAU INDECO H500  1115","1115",null,null,null,"ATTACHE KUBOTA"]
["MARTEAU ATLAS COPCO SB102  1170","1170",null,null,null,"ATTACHE KUBOTA"]
["MARTEAU ATLAS COPCO SB102  1175","1175",null,null,null,"ATTACHE KUBOTA"]
["MARTEAU BOBCAT HB680  1235","1235",null,null,null,"ATTACHE BOBCAT"]
["MARTEAU BOBCAT HB680  1240","1240",null,null,null,"ATTACHE BOBCAT"]
["MARTEAU ATLAS COPCO SB102  1245","1245",null,null,null,"ATTACHE BOBCAT"]
["MARTEAU ATLAS COPCO SB102  1250","1250",null,null,null,"ATTACHE KUBOTA"]
["MARTEAU ATLAS COPCO SB102  1305","1305",null,null,null,"TRAMAC RECHERCHÉ"]
["MARTEAU ATLAS COPCO SB102  1310","1310",null,null,null,"TRAMAC RECHERCHÉ"]
["MARTEAU INDECO H500  1400","1400",null,null,null,"ATTACHE KOMATSU"]
["MARTEAU BOBCAT HB680  1415","1415",null,null,null,"AUCUNE ATTACHE"]
["MARTEAU BOBCAT HB680  1445","1445",null,null,null,"ATTACHE BOBCAT"]
[]
[]
[]
[]
[]
["MACHOIRES + SCARIFICATEURS"]
["SCARIFICATEUR    760","760",null,null,null,"Attache Bobcat"]
["MACHOIRE DARDA DRC 560  860","860",null,null,null,"Attache Komatsu"]
["MÂCHOIRE DARDA CC520  1295","1295",null,null,null,"Attache Komatsu"]
["MACHOIRE EPIROC  1440",1440,null,null,null,"Attache Case"]
[]
[]
[]
["HYDRO"]
["POMPE UHP 225G NLB ÉLECTRIQUE  205","205"]
["POMPE HP 20250 NLB DIÉSEL  220","220"]
["POMPE HP 20600 NLB ÉLECTRIQUE  330","330"]
["POMPE HP 20600 NLB DIESEL  515","515"]
["ROBOT AQUAJET 710V EVOLUTION  880","880"]
["ROBOT AQUAJET 710V EVOLUTION  1080","1080"]
["POMPE NLB 40225G 1380","1380"]
["SPINJET  998",998]
["SPINJET  999",999]
[]
[]
["CAMIONS"]
["FORD F-150  410","410",null,"Arnou Bienvenue",410,"Arnou Bienvenue"]
["DODGE DAKOTA  680",680,null,"Arridano Talon",680,"Arridano Talon"]
["CHEVROLET SILVERADO  710","710",null,"Auriville Hervieux",710,"Auriville Hervieux"]
["CHEVROLET SILVERADO   885","885",null,"Bevis Tessier",null,"Bevis Tessier"]
["CHEVROLET SILVERADO   910","910",null,"Byron Daviau",910,"Byron Daviau"]
["CHEVROLET SILVERADO   915","915",null,"Chappell Chartré",915,"Chappell Chartré"]
["CHEVROLET SILVERADO   935","935",null,"Charles Viens",935,"Charles Viens"]
["CHEVROLET SILVERADO   940","940",null,"Delmar Lavallée",940,"Delmar Lavallée"]
["CHEVROLET SILVERADO   975","975",null,"Denis Jacques",975,"Denis Jacques"]
["FORD F550  1000","1000",null,"Éric Despins",1000,"Éric Despins"]
["MITSUBISHI FUSO  FE180  1005","1005",null,"Éric Méthot",1005,"Éric Méthot"]
["GMC SIERRA 1500  1045","1045",null,"Éric Tanguay",1045,"Éric Tanguay"]
["CHEVROLET SILVERADO  1085","1085",null,"Franck Rousseau",1085,"Franck Rousseau"]
["HINO 195D  1150","1150",null,"Frontino Sorel",1150,"Frontino Sorel"]
["FORD F150  1160","1160",null,"Gabriel Gamelin",1160,"Gabriel Gamelin"]
["TOYOTA TACOMA  1180","1180",null,"Ganelon Bélair",1180,"Ganelon Bélair"]
["FORD F150  1185","1185",null,"Germain Carignan",1185,"Germain Carignan"]
["FORD F150  1190","1190",null,"Honoré Quessy",1190,"Honoré Quessy"]
["RAM PROMASTER CITY  1210","1210",null,"Javier Boncoeur",1210,"Javier Boncoeur"]
["FORD F-150  1215","1215",null,"Jay Tougas",1215,"Jay Tougas"]
["CHEVROLET SILVERADO  1220","1220",null,"Jean Couturier",1220,"Jean Couturier"]
["CHEVROLET SILVERADO  1225","1225",null,"Karel Guertin",1225,"Karel Guertin"]
["FORD F-150  1255","1255",null,"Kerman Marleau",1255,"Kerman Marleau"]
["FORD F-150  1260","1260",null,"Lance Mathieu",1260,"Lance Mathieu"]
["HINO 195  1285","1285",null,"Luc Béland",1285,"Luc Béland"]
["HINO 195D  1315","1315",null,"Malagigi Deniger",1315,"Malagigi Deniger"]
["CHEVROLET SILVERADO  1330",1330,null,"Manville Hughes",1330,"Manville Hughes"]
["CHEVROLET SILVERADO  1335","1335",null,"Manville Provencher",1335,"Manville Provencher"]
["CHEVROLET SILVERADO  1340","1340",null,"Marc Quinn",1340,"Marc Quinn"]
["GMC SIERRA  1345","1345",null,"Marlon Berthelette",1345,"Marlon Berthelette"]
["HINO 195  1355","1355",null,"Maslin Bourassa",1355,"Maslin Bourassa"]
["DODGE RAM  1365","1365",null,"Matthieu Thériault",1365,"Matthieu Thériault"]
["FORD TRANSIT  1370",1370,null,"Matthieu Varieur",1370,"Matthieu Varieur"]
["FORD TRANSIT  1375","1375",null,"Merle Saurel",1375,"Merle Saurel"]
["CHEVROLET SILVERADO  1395","1395",null,"Michel Batard",1395,"Michel Batard"]
["GMC CANYON  1465",1465,null,"Nicolas Babin",null,"Nicolas Babin"]
["GMC SIERRA  1470",1470,null,"Noël De La Ronde",null,"Noël De La Ronde"]
[]
[]
[]
["REMORQUES"]
["REMORQUE MANAC V90  285"," 285"]
["REMORQUE TOWMA T10P  290"," 290","MR",null,290]
["REMORQUE ROUGE  425"," 425"]
["REMORQUE MANAC POMPE HYDRO  525"," 525"]
["REMORQUE FORES TW612  700"," 700"]
["REMORQUE CAM   845"," 845"]
["ROULOTTE AFA IND   905"," 905"]
["REMORQUE IDEAL CARGO 6X12  1070","1070",null,"YANICK MARTINEAU",1070,"YANICK MARTINEAU"]
["REMORQUE IDEAL  1125","1125"]
["REMORQUE IDEAL  1130","1130"]
["REMORQUE KING TRAIL  1195","1195"]
["REMORQUE EZ HAULER 6X12  1200","1200",null,"STEVE MOLLOY",1200,"STEVE MOLLOY"]
["REMORQUE LAROCHE GAS4X8  1230","1230"]
["REMORQUE STEAL 6X12  1270","1270","MR"]
["REMORQUE KING TRAIL  1385",1385]
[]
[]
[]
[]
["ACCESSOIRES"]
["MACHINE GUNITE ALIVA 246  320",320]
["POMPE HONDA V-TWIN  485",485]
["POMPE À BÉTON BUNKER B100  655",655]
["UNITÉ HYDRAULIQUE BUNKER  660",660]
["POMPE IMER SMALL 50  665",665]
["POMPE GRACO   705",705]
["TOUR ÉCLAIRAGE MAGNUM MLT40  870",870]
["TOUR ÉCLAIRAGE MAGNUM MLT30  875",875]
["PAM RNP IND  1055","1055"]
["PAM RNP IND  1100","1100"]
["MACHINE  HTC 950 RX  1120",1120]
["PAM RNP IND  1135","1135"]
["POMPE À BÉTON BUNKER B100  ????","8888",null,null,null,null,"Pas De Numéro"]
["ASSIETTE","ASSIETTE",null,null,null,"Attache Bobcat"]
[]
[]
[]
["BALAIS "]
["BALAI BOBCAT 60\"   395",395]
["BALAI BOBCAT 60\"  790","790"]
["BALAI BOBCAT 60\"  970","970"]
["BALAI BOBCAT 74\"  1025","1025"]
["BALAI BOBCAT 72\"  1145","1145"]
["BALAI BOBCAT 60\"  1265","1265"]
["BALAI BOBCAT 72\"  1410",1410]
["BALAI BOBCAT 60\"  791","791"]
[]
[]
[]
["GRAPPIN"]
["GRAPPLE BUCKET 74''  1405",1405]
["GRAPPLE BUCKET 74''  1420",1420]
["GRAPPLE BUCKET 74''  1425",1425]
["GRAPPLE BUCKET 68''  ----",5555,null,null,null,null,"Pas De Numéro",null," "]
["GRAPPLE BUCKET 68''  ----",6666,null,null,null,null,"Pas De Numéro"]
[]
[null,1]
[null,2]
[null,3]

{"sheet":"DATA","index":2,"n_rows":54,"n_cols":8,"rows_kept":54,"cut":false,"hidden":false,"merged":[]}
[null,"CHANTIERS","N°","CONTREMAITRE"]
[null," "," "," "]
[null,"actyon","19-5671","Bevis Tessier",null,null,null,"Arnou Bienvenue"]
[null,"adam","19-5676","Charles Viens",null,null,null,"Arridano Talon"]
[null,"agila","18-5566","Denis Jacques",null,null,null,"Auriville Hervieux"]
[null,"altea","18-5617","Bevis Tessier",null,null,null,"Bevis Tessier"]
[null,"alto","19-5675","Chappell Chartré",null,null,null,"Byron Daviau"]
[null,"amarok","18-5542","Bevis Tessier",null,null,null,"Chappell Chartré"]
[null,"ampera","18-5578","Charles Viens",null,null,null,"Charles Viens"]
[null,"antara","18-5678","Denis Jacques",null,null,null,"Delmar Lavallée"]
[null,"astra","19-5672","Bevis Tessier",null,null,null,"Denis Jacques"]
[null,"auris","18-5588","Chappell Chartré",null,null,null,"Éric Despins"]
[null,"avensis","18-5572","Bevis Tessier",null,null,null,"Éric Méthot"]
[null,"aveo","17-5505","Charles Viens",null,null,null,"Éric Tanguay"]
[null,"aygo","18-5550","Denis Jacques",null,null,null,"Franck Rousseau"]
[null,"berlingo","19-5670","Bevis Tessier",null,null,null,"Frontino Sorel"]
[null,"bravo","18-5583","Chappell Chartré",null,null,null,"Gabriel Gamelin"]
[null,"brava","18-1111","Bevis Tessier",null,null,null,"Ganelon Bélair"]
[null,"caddy","18-5554","Charles Viens",null,null,null,"Germain Carignan"]
[null,"camaro","17-5509","Denis Jacques",null,null,null,"Honoré Quessy"]
[null,"captiva","18-5632","Bevis Tessier",null,null,null,"Javier Boncoeur"]
[null,"carrera","18-5685","Chappell Chartré",null,null,null,"Jay Tougas"]
[null,"cayenne","18-5634","Bevis Tessier",null,null,null,"Jean Couturier"]
[null,"cayman","16-5307","Charles Viens",null,null,null,"Karel Guertin"]
[null,"cerebra","18-5625","Denis Jacques",null,null,null,"Kerman Marleau"]
[null,"ceed","18-5547","Bevis Tessier",null,null,null,"Lance Mathieu"]
[null,"citigo","18-5571","Chappell Chartré",null,null,null,"Luc Béland"]
[null,"civic","18-5680","Bevis Tessier",null,null,null,"Malagigi Deniger"]
[null,"charade","18-5594","Charles Viens",null,null,null,"Manville Hughes"]
[null,"chimera","18-5540","Denis Jacques",null,null,null,"Manville Provencher"]
[null,"chevy","18-5595","Bevis Tessier",null,null,null,"Marc Quinn"]
[null,"clio","18-5608","Chappell Chartré",null,null,null,"Marlon Berthelette"]
[null,"colorado","17-5430","Bevis Tessier",null,null,null,"Maslin Bourassa"]
[null,"colt","18-5536","Charles Viens",null,null,null,"Matthieu Thériault"]
[null,"copen","18-5537","Denis Jacques",null,null,null,"Matthieu Varieur"]
[null,"corsa","19-5691","Bevis Tessier",null,null,null,"Merle Saurel"]
[null,"cosmo","18-5677","Chappell Chartré",null,null,null,"Michel Batard"]
[null,"croma","18-5570","Bevis Tessier",null,null,null,"Nicolas Babin"]
[null,"cuore","18-5524","Charles Viens",null,null,null,"Noël De La Ronde"]
[null,"cruze","18-5642","Denis Jacques",null,null,null,"Normand Paiement"]
[null,"cygnet","18-5582","Bevis Tessier",null,null,null,"Odo Ruel"]
[null,"delta","19-5669","Chappell Chartré",null,null,null,"Olivier Marquis"]
[null,"doblo","18-5620","Bevis Tessier",null,null,null,"Olivier Turcotte"]
[null,"dokker","18-5596","Charles Viens",null,null,null,"Paien Souplet"]
[null,"ducato","18-5539","Denis Jacques",null,null,null,"Patrick Guernon"]
[null,"duster","18-5553","Bevis Tessier",null,null,null,"Prewitt Francoeur"]
[null,"elise",null,null,null,null,null,"René Rossignol"]
[null,"evalia"]
[null,"evora"]
[null,"exeo"]
[null,"exige"]
[null,"fabia"]
[null,"fiesta"]
[null,"flavia"]

{"sheet":"Feuil1","index":3,"n_rows":18,"n_cols":8,"rows_kept":18,"cut":false,"hidden":false,"merged":[]}
[]
[]
[null,null,null,"Quand je double clics sur une cellule qui contient du texte, A la cellule F1, apparait l'information "]
[]
[null,null,null,"Plusieurs cellules contiennent 3 critères d'informations. Alors au double click sur certaines cellules, "]
[null,null,null,"aux cellules F1, N1, S1 apparaissent les informations requises. "]
[null,null,null,null,null,null,{"$f":"TODAY()","v":"2019-05-05"},"2019-05-01"]
[null,null,null,"Mais ou est mon problème, lorsque je double clic sur une cellule qui contient seulement 1 critère, si j'avais des informations aux cellules N1 et S1, J'aimerais que ces informations disparaissent. "]
[]
[null,null,null,"Meme chose si je clic sur une cellule vide, N1 et S1 devrait rester vide, ce qui n'est pas le cas "]
[]
[]
[]
[]
[null,null,null,"Par exemple, Si je double clique sur J15, il apparait les infos en F1 "]
[null,null,null,"double clic sur J16, devrait effacer les infos a F1 puisque la cellule est vide "]
[null,null,null,"double clic sur P67, les cellules F1, N1 et S1 montrent les infos, "]
[null,null,null,"double clic sur R67, devrait supprimer les infos a F1,N1 et S1 "]